fUST/lending_fUST_20260310
["ID","MTS","AMOUNT","RATE_DAILY","PERIOD"]
[408053775,1773076243529,-541.0,9.315e-05,2]
[408053778,1773076243538,-593.57887012,9.315e-05,2]
[408053779,1773076243547,-500.0,9.315e-05,2]
[408053781,1773076243556,-500.0,9.315e-05,2]
[408053783,1773076243566,-500.0,9.315e-05,2]
[408053785,1773076243575,-541.0,9.369e-05,2]
[408053787,1773076243584,-500.0,9.369e-05,2]
[408053789,1773076243594,-500.0,9.369e-05,2]
[408053791,1773076243604,-500.38823579,9.38e-05,2]
[408053793,1773076243614,-1044.61634101,9.388e-05,2]
[408053796,1773076243626,-1040.45365899,9.388e-05,2]
[408053798,1773076243634,-2000.0,9.4e-05,2]
[408053800,1773076243644,-243.36268377,9.424e-05,2]
[408053803,1773076243662,-297.63731623,9.424e-05,2]
[408053805,1773076243671,-2.36268377,9.424e-05,2]
[408053886,1773076246291,-540.7883241,9.151e-05,2]
[408053906,1773076802550,155.0,2e-05,2]
[408053909,1773077405559,155.0,2e-05,2]
[408053910,1773077405634,155.0,2e-05,2]
[408053911,1773077410313,5000.0,2.001e-05,2]
[408053973,1773077432388,-155.0,2.1e-05,2]
[408053975,1773077432397,-129.79628156,2.1e-05,2]
[408054129,1773077438458,-431.87462275,2.079e-05,2]
[408054198,1773077443508,-1340.01217903,2.079e-05,2]
[408054199,1773077443523,-3228.11319822,2.079e-05,2]
[408054200,1773077443534,-25.20371844,2.1e-05,2]
[408054201,1773077443546,-155.0,2.1e-05,2]
[408054202,1773077443556,-155.0,2.1e-05,2]
[408054203,1773077443565,-291.91479937,2.173e-05,2]
[408054204,1773077443575,-155.0,2.2e-05,2]
[408054205,1773077443586,-155.0,2.2e-05,2]
[408054206,1773077443595,-155.0,2.2e-05,2]
[408054207,1773077443604,-167.515006,2.543e-05,2]
[408054208,1773077443613,-167.515006,3.178e-05,2]
[408054209,1773077443622,-167.515006,3.814e-05,2]
[408054210,1773077443632,-344.45946326,4.173e-05,2]
[408054211,1773077443641,-167.515006,4.45e-05,2]
[408054212,1773077443650,-541.0,4.999e-05,2]
[408054213,1773077443660,-2559.94403955,5e-05,2]
[408054214,1773077443669,-167.515006,5.085e-05,2]
[408054215,1773077443678,-2363.4687972,5.1e-05,2]
[408054223,1773077650235,151.0,8e-05,60]
[408054224,1773077670634,193.48,0.000102,120]
[408054226,1773078007561,165.58,2e-05,2]
[408054230,1773078603491,165.58,2e-05,2]
[408054261,1773078631573,-347.61539864,4.171e-05,2]
[408054263,1773078631584,-1232.64705695,4.213e-05,2]
[408054266,1773078631595,-1527.42717751,4.213e-05,2]
[408054268,1773078631606,-5000.0,4.256e-05,2]
[408054270,1773078631616,-283.25210051,4.321e-05,2]
[408054272,1773078631625,-1200.0,4.341e-05,2]
[408054274,1773078631635,-581.69810566,4.851e-05,2]
[408054276,1773078631644,-3420.73880509,5.1e-05,2]
[408054278,1773078631653,-6341.18467301,5.2e-05,2]
[408054279,1773078631662,-300.0,5.201e-05,2]
[408054281,1773078631671,-300.0,5.201e-05,2]
[408054283,1773078631680,-300.0,5.201e-05,2]
[408054285,1773078631690,-300.0,5.201e-05,2]
[408054287,1773078631699,-300.0,5.201e-05,2]
[408054289,1773078631709,-300.0,5.201e-05,2]
[408054291,1773078631718,-300.0,5.201e-05,2]
[408054293,1773078631727,-300.0,5.201e-05,2]
[408054295,1773078631736,-300.0,5.201e-05,2]
[408054297,1773078631746,-300.0,5.201e-05,2]
[408054299,1773078631756,-300.0,5.201e-05,2]
[408054301,1773078631765,-300.0,5.201e-05,2]
[408054303,1773078631775,-300.0,5.201e-05,2]
[408054306,1773078631790,-300.0,5.201e-05,2]
[408054308,1773078631799,-300.0,5.201e-05,2]
[408054309,1773078631808,-2266.30525262,5.3e-05,2]
[408054312,1773078631820,-538.47093884,5.3e-05,2]
[408054314,1773078631837,-2920.45545852,5.3e-05,2]
[408054499,1773078637778,-691.28041822,5.3e-05,2]
[408054500,1773078637793,-55.8540343,5.304e-05,2]
[408054531,1773078642715,-1962.23774358,5.247e-05,2]
[408054532,1773078642822,-3037.76225642,5.247e-05,2]
[408054533,1773078642833,-544.1459657,5.304e-05,2]
[408054534,1773078642843,-365.88556737,5.4e-05,2]
[408054541,1773078645555,-766.5236735,5.4e-05,2]
[408054542,1773078645567,-949.77920166,5.4e-05,2]
[408054681,1773079204642,156.71,2e-05,2]
[408054687,1773079243809,-2087.47085234,4.85e-05,2]
[408054788,1773079831989,-305.668248,4.79e-05,2]
[408054790,1773079832000,-4694.331752,4.79e-05,2]
[408054792,1773079832010,-294.1983094,4.814e-05,2]
[408054794,1773079832019,-11.4699386,4.9e-05,2]
[408054797,1773079832031,-2314.4949559,4.9e-05,2]
[408054799,1773079832040,-284.0630792,4.907e-05,2]
[408054801,1773079832049,-1200.0,4.994e-05,2]
[408054803,1773079832059,-300.0,4.995e-05,2]
[408054805,1773079832068,-300.0,4.996e-05,2]
[408054807,1773079832077,-300.0,4.997e-05,2]
[408054809,1773079832087,-300.0,4.997e-05,2]
[408054811,1773079832096,-300.0,4.997e-05,2]
[408054813,1773079832106,-300.0,4.997e-05,2]
[408054815,1773079832115,-300.0,4.997e-05,2]
[408054817,1773079832125,-300.0,4.997e-05,2]
[408054819,1773079832135,-300.0,4.997e-05,2]
[408054821,1773079832144,-271.23388424,4.997e-05,2]
[408054823,1773079832159,-28.76611576,4.997e-05,2]
[408054825,1773079832169,-300.0,4.997e-05,2]
[408054827,1773079832177,-300.0,4.997e-05,2]
[408054829,1773079832187,-300.0,4.997e-05,2]
[408054831,1773079832197,-159.40112813,4.997e-05,2]
[408055016,1773079837693,-140.59887187,4.997e-05,2]
[408055017,1773079837702,-300.0,4.997e-05,2]
[408055019,1773079837712,-300.0,4.997e-05,2]
[408055020,1773079837722,-300.0,4.997e-05,2]
[408055021,1773079837732,-1554.57398587,5e-05,2]
[408055022,1773079837742,-165.40065792,5.096e-05,2]
[408055023,1773079837857,-434.59934208,5.096e-05,2]
[408055024,1773079837866,-773.660447,5.121e-05,2]
[408055025,1773079837876,-6559.0,5.31e-05,2]
[408055026,1773079837885,-773.660447,5.337e-05,2]
[408055027,1773079837894,-640.3705543,5.479e-05,2]
[408055028,1773079837903,-1200.0,5.493e-05,2]
[408055029,1773079837913,-2325.9648945,5.543e-05,2]
[408055030,1773079837922,-773.660447,5.552e-05,2]
[408055031,1773079837931,-720.0,5.606e-05,2]
[408055032,1773079837941,-284.0630792,5.641e-05,2]
[408055033,1773079837950,-161.31399344,5.663e-05,2]
[408055034,1773079837960,-773.660447,5.768e-05,2]
[408055035,1773079837970,-773.660447,5.983e-05,2]
[408055036,1773079837980,-500.0,6.063e-05,2]
[408055037,1773079837989,-462807.15775573,6.086e-05,2]
[408055038,1773079838001,-1937192.84224427,6.086e-05,2]
[408055039,1773079838011,-864.0,6.166e-05,2]
[408055040,1773079838020,-1735.453,6.186e-05,2]
[408055041,1773079838030,-185.718,6.186e-05,2]
[408055042,1773079838040,-2325.9648945,6.186e-05,2]
[408055043,1773079838050,-773.660447,6.199e-05,2]
[408055044,1773079838059,-284.0630792,6.375e-05,2]
[408055045,1773079838070,-3505.07180037,6.693e-05,2]
[408055046,1773079838079,-1000.0,6.783e-05,2]
[408055047,1773079838088,-347.15400509,6.814e-05,2]
[408055048,1773079838098,-2325.9648945,6.83e-05,2]
[408055049,1773079838111,-284.0630792,7.109e-05,2]
[408055050,1773079838120,-1000.0,7.461e-05,2]
[408055051,1773079838129,-244.0,7.461e-05,2]
[408055052,1773079838139,-151.0,7.97e-05,2]
[408055053,1773079838149,-156.587,7.97e-05,2]
[408055054,1773079838162,-162.380719,7.97e-05,2]
[408055055,1773079838172,-168.3888056,7.97e-05,2]
[408055056,1773079838181,-174.61919141,7.97e-05,2]
[408055057,1773079838191,-181.08010149,7.97e-05,2]
[408055058,1773079838200,-187.78006525,7.97e-05,2]
[408055059,1773079838210,-194.72792766,7.97e-05,2]
[408055060,1773079838218,-201.93286099,7.97e-05,2]
[408055061,1773079838229,-209.40437684,7.97e-05,2]
[408055062,1773079838238,-217.15233878,7.97e-05,2]
[408055063,1773079838247,-225.18697532,7.97e-05,2]
[408055064,1773079838257,-233.51889341,7.97e-05,2]
[408055065,1773079838267,-242.15909246,7.97e-05,2]
[408055066,1773079838275,-251.11897888,7.97e-05,2]
[408055067,1773079838285,-260.4103811,7.97e-05,2]
[408055068,1773079838294,-270.0455652,7.97e-05,2]
[408055069,1773079838303,-280.03725112,7.97e-05,2]
[408055070,1773079838312,-290.39862941,7.97e-05,2]
[408055071,1773079838322,-301.1433787,7.97e-05,2]
[408055072,1773079838330,-1000.0,8.207e-05,2]
[408055073,1773079838340,-492.0,8.207e-05,2]
[408055074,1773079838349,-500.0,8.219e-05,2]
[408055075,1773079838358,-4020.62763418,8.386e-05,2]
[408055076,1773079838367,-500.0,8.493e-05,2]
[408055077,1773079838376,-2150.738,8.499e-05,2]
[408055078,1773079838385,-212.50844294,8.527e-05,5]
[408055079,1773079838394,-500.0,8.767e-05,2]
[408055080,1773079838403,-400.10970078,8.814e-05,2]
[408055081,1773079838412,-1000.0,9.028e-05,2]
[408055082,1773079838421,-791.0,9.028e-05,2]
[408055083,1773079838430,-500.0,9.041e-05,2]
[408055084,1773079838439,-2230.315306,9.047e-05,2]
[408055085,1773079838448,-166.970293,9.15e-05,2]
[408055086,1773079838458,-166.970293,9.15e-05,2]
[408055087,1773079838467,-166.970293,9.15e-05,2]
[408055088,1773079838475,-166.970293,9.15e-05,2]
[408055089,1773079838485,-500.0,9.15e-05,2]
[408055090,1773079838494,-500.0,9.15e-05,2]
[408055091,1773079838503,-428.0,9.15e-05,2]
[408055092,1773079838512,-500.0,9.205e-05,2]
[408055093,1773079838522,-500.0,9.205e-05,2]
[408055094,1773079838532,-428.0,9.205e-05,2]
[408055095,1773079838542,-500.0,9.26e-05,2]
[408055096,1773079838551,-500.0,9.26e-05,2]
[408055097,1773079838560,-428.0,9.26e-05,2]
[408055098,1773079838570,-500.0,9.314e-05,2]
[408055099,1773079838579,-500.0,9.314e-05,2]
[408055100,1773079838588,-428.0,9.314e-05,2]
[408055101,1773079838598,-500.0,9.315e-05,2]
[408055102,1773079838607,-428.19319674,9.369e-05,2]
[408055103,1773079838616,-500.0,9.369e-05,2]
[408055104,1773079838625,-428.0,9.369e-05,2]
[408055105,1773079838635,-3000.0,9.4e-05,30]
[408055106,1773079838644,-3000.0,9.41e-05,30]
[408055107,1773079838653,-3000.0,9.42e-05,30]
[408055108,1773079838663,-500.0,9.424e-05,2]
[408055109,1773079838671,-428.0,9.424e-05,2]
[408055110,1773079838681,-3000.0,9.43e-05,30]
[408055111,1773079838690,-4072.219678,9.44e-05,30]
[408055112,1773079838699,-500.0,9.479e-05,2]
[408055113,1773079838708,-428.0,9.479e-05,2]
[408055114,1773079838717,-2000.0,9.5e-05,2]
[408055115,1773079838726,-500.0,9.534e-05,2]
[408055116,1773079838735,-428.0,9.534e-05,2]
[408055117,1773079838745,-2085.07,9.561e-05,2]
[408055118,1773079838754,-166.970293,9.588e-05,2]
[408055119,1773079838763,-166.970293,9.588e-05,2]
[408055120,1773079838772,-166.970293,9.588e-05,2]
[408055121,1773079838782,-166.970293,9.588e-05,2]
[408055122,1773079838791,-500.0,9.588e-05,2]
[408055123,1773079838802,-428.0,9.588e-05,2]
[408055124,1773079838812,-500.0,9.589e-05,2]
[408055125,1773079838822,-151.0,9.589e-05,2]
[408055126,1773079838831,-151.0,9.589e-05,2]
[408055127,1773079838841,-151.0,9.589e-05,2]
[408055128,1773079838850,-151.0,9.589e-05,2]
[408055129,1773079838859,-151.0,9.589e-05,2]
[408055130,1773079838868,-151.0,9.589e-05,2]
[408055131,1773079838877,-151.0,9.589e-05,2]
[408055132,1773079838887,-151.0,9.589e-05,2]
[408055133,1773079838896,-151.0,9.589e-05,2]
[408055134,1773079838907,-151.0,9.589e-05,2]
[408055135,1773079838918,-151.0,9.589e-05,2]
[408055136,1773079838928,-151.0,9.589e-05,2]
[408055137,1773079838937,-151.0,9.589e-05,2]
[408055138,1773079838948,-246.650553,9.589e-05,2]
[408055139,1773079838957,-2312.83697232,9.595e-05,2]
[408055140,1773079838966,-2000.0,9.6e-05,2]
[408055141,1773079838975,-500.0,9.643e-05,2]
[408055142,1773079838984,-428.0,9.643e-05,2]
[408055143,1773079838993,-500.0,9.698e-05,2]
[408055144,1773079839003,-428.0,9.698e-05,2]
[408055145,1773079839011,-2000.0,9.7e-05,2]
[408055146,1773079839020,-2085.07,9.734e-05,2]
[408055147,1773079839029,-500.0,9.753e-05,2]
[408055148,1773079839039,-428.0,9.753e-05,2]
[408055149,1773079839048,-2000.0,9.8e-05,2]
[408055150,1773079839058,-500.0,9.808e-05,2]
[408055151,1773079839067,-428.0,9.808e-05,2]
[408055152,1773079839077,-500.0,9.862e-05,2]
[408055153,1773079839086,-428.0,9.862e-05,2]
[408055154,1773079839096,-166.970293,9.863e-05,2]
[408055155,1773079839105,-166.970293,9.863e-05,2]
[408055156,1773079839114,-166.970293,9.863e-05,2]
[408055157,1773079839124,-166.970293,9.863e-05,2]
[408055158,1773079839133,-500.0,9.863e-05,2]
[408055159,1773079839142,-2000.0,9.9e-05,2]
[408055160,1773079839155,-2085.07,9.907e-05,2]
[408055161,1773079839164,-242.4589223,9.917e-05,2]
[408055162,1773079839173,-428.0,9.917e-05,2]
[408055163,1773079839182,-1000.0,9.931e-05,2]
[408055164,1773079839192,-1000.0,9.931e-05,2]
[408055165,1773079839201,-428.0,9.972e-05,2]
[408055166,1773079839210,-500.0,9.973e-05,2]
[408055167,1773079839220,-500.0,9.973e-05,2]
[408055168,1773079839229,-285.54683059,9.973e-05,2]
[408055169,1773079839238,-500.0,9.973e-05,2]
[408055170,1773079839247,-2128.20767119,0.0001,2]
[408055171,1773079839257,-290.87311578,0.0001,2]
[408055172,1773079839266,-94440.59514342,0.0001,2]
[408055173,1773079839275,-1000.0,0.0001,2]
[408055174,1773079839285,-3463.5144457,0.0001,2]
[408055175,1773079839294,-1281.23452592,0.0001,2]
[408055176,1773079839303,-166.970293,0.0001,2]
[408055177,1773079839312,-166.970293,0.0001,2]
[408055178,1773079839322,-166.970293,0.0001,2]
[408055179,1773079839332,-166.970293,0.0001,2]
[408055180,1773079839342,-250.64583484,0.0001,2]
[408055181,1773079839352,-151.0,0.0001,2]
[408055182,1773079839362,-151.0,0.0001,2]
[408055183,1773079839373,-151.0,0.0001,2]
[408055184,1773079839385,-151.0,0.0001,2]
[408055185,1773079839397,-151.0,0.0001,2]
[408055186,1773079839406,-151.0,0.0001,2]
[408055187,1773079839417,-151.0,0.0001,2]
[408055188,1773079839426,-151.0,0.0001,2]
[408055189,1773079839436,-151.0,0.0001,2]
[408055190,1773079839445,-151.0,0.0001,2]
[408055191,1773079839455,-151.0,0.0001,2]
[408055192,1773079839465,-151.0,0.0001,2]
[408055193,1773079839474,-151.0,0.0001,2]
[408055194,1773079839485,-151.0,0.0001,2]
[408055195,1773079839494,-151.0,0.0001,2]
[408055196,1773079839503,-151.0,0.0001,2]
[408055197,1773079839512,-151.0,0.0001,2]
[408055198,1773079839521,-151.0,0.0001,2]
[408055200,1773079839530,-151.0,0.0001,2]
[408055202,1773079839540,-151.0,0.0001,2]
[408055204,1773079839550,-2345.25670268,0.0001,2]
[408055206,1773079839559,-2000.0,0.0001,2]
[408055208,1773079839569,-428.0,0.00010027,2]
[408055211,1773079839578,-4311.24999454,0.00010079,2]
[408055214,1773079839589,-166.970293,0.0001008,2]
[408055217,1773079839598,-166.970293,0.0001008,2]
[408055220,1773079839608,-166.970293,0.0001008,2]
[408055222,1773079839618,-166.97029312,0.0001008,2]
[408055224,1773079839628,-2085.07,0.0001008,2]
[408055227,1773079839637,-428.0,0.00010082,2]
[408055229,1773079839647,-2000.0,0.000101,2]
[408055232,1773079839656,-428.0,0.00010136,2]
[408055234,1773079839665,-500.0,0.00010137,2]
[408055235,1773079839674,-2398.4119403,0.00010143,2]
[408055237,1773079839684,-190.56216009,0.00010162,2]
[408055238,1773079839693,-428.0,0.00010191,2]
[408055239,1773079839702,-170.5,0.000102,2]
[408055240,1773079839712,-500.0,0.000102,2]
[408055241,1773079839722,-250.0,0.000102,2]
[408055242,1773079839731,-500.0,0.000102,2]
[408055243,1773079839741,-284.42113446,0.00010204,2]
[408055244,1773079839750,-218.04944675,0.00010246,2]
[408055245,1773079839759,-428.0,0.00010246,2]
[408055246,1773079839769,-2085.07,0.00010253,2]
[408055247,1773079839778,-428.0,0.00010301,2]
[408055248,1773079839787,-428.0,0.00010355,2]
[408055249,1773079839797,-446.3525372,0.0001041,2]
[408055250,1773079839806,-250.0,0.00010411,2]
[408055251,1773079839815,-500.0,0.00010411,2]
[408055252,1773079839825,-2085.07,0.00010426,2]
[408055253,1773079839834,-544.13459942,0.00010521,2]
[408055254,1773079839843,-1000.0,0.00010521,2]
[408055256,1773079839852,-2085.07,0.00010599,2]
[408055258,1773079839861,-427.05545959,0.00010618,2]
[408055260,1773079839871,-2864.16642498,0.00010653,2]
[408055262,1773079839880,-500.0,0.00010685,2]
[408055264,1773079839889,-2487.15318209,0.00010691,2]
[408055266,1773079839898,-244.65548862,0.0001071,2]
[408055268,1773079839908,-500.0,0.0001071,2]
[408055270,1773079839917,-2085.07,0.00010772,2]
[408055272,1773079839926,-453.06539647,0.00010814,2]
[408055274,1773079839935,-2078.6,0.000109,2]
[408055276,1773079839944,-1000.0,0.00010924,2]
[408055278,1773079839953,-1000.0,0.00010924,2]
[408055280,1773079839963,-579.0,0.00010924,2]
[408055282,1773079839972,-4555.80847308,0.00010926,2]
[408055284,1773079839981,-2085.07,0.00010945,2]
[408055286,1773079839990,-46246.1242466,0.00010959,2]
[408055288,1773079839999,-500.0,0.00010959,2]
[408055290,1773079840009,-151.0,0.00010959,2]
[408055292,1773079840019,-151.0,0.00010959,2]
[408055294,1773079840028,-151.0,0.00010959,2]
[408055296,1773079840037,-151.0,0.00010959,2]
[408055298,1773079840046,-151.0,0.00010959,2]
[408055300,1773079840055,-151.0,0.00010959,2]
[408055302,1773079840065,-151.0,0.00010959,2]
[408055303,1773079840074,-151.0,0.00010959,2]
[408055305,1773079840084,-151.0,0.00010959,2]
[408055307,1773079840093,-151.0,0.00010959,2]
[408055309,1773079840102,-151.0,0.00010959,2]
[408055311,1773079840112,-151.0,0.00010959,2]
[408055313,1773079840121,-265.298883,0.00010959,2]
[408055315,1773079840130,-200.0,0.00010959,2]
[408055317,1773079840139,-200.0,0.00010959,2]
[408055319,1773079840151,-281.0,0.00011,2]
[408055321,1773079840160,-151.0,0.00011,2]
[408055323,1773079840169,-151.0,0.00011,2]
[408055325,1773079840178,-151.0,0.00011,2]
[408055327,1773079840188,-151.0,0.00011,2]
[408055329,1773079840199,-151.0,0.00011,2]
[408055331,1773079840208,-151.0,0.00011,2]
[408055333,1773079840218,-1500.0,0.00011068,2]
[408055335,1773079840229,-2085.07,0.00011118,2]
[408055336,1773079840239,-1093.47766034,0.00011133,2]
[408055338,1773079840249,-500.0,0.0001122,2]
[408055340,1773079840258,-500.0,0.00011233,2]
[408055342,1773079840268,-2579.17784983,0.00011239,2]
[408055344,1773079840278,-151.0,0.000113,2]
[408055346,1773079840288,-151.0,0.000114,2]
[408055348,1773079840297,-151.0,0.000114,2]
[408055350,1773079840306,-151.0,0.000114,2]
[408055352,1773079840315,-181.79120563,0.0001147,16]
[408055354,1773079840324,-500.0,0.00011507,2]
[408055356,1773079840333,-2000.0,0.00011616,2]
[408055358,1773079840342,-151.0,0.000117,2]
[408055361,1773079840352,-4642.97040642,0.00011772,2]
[408055363,1773079840361,-500.0,0.00011781,2]
[408055365,1773079840370,-2674.60743027,0.00011787,2]
[408055367,1773079840379,-151.0,0.000118,2]
[408055369,1773079840389,-151.0,0.000118,2]
[408055371,1773079840398,-151.0,0.000118,2]
[408055373,1773079840407,-2078.6,0.000119,2]
[408055375,1773079840416,-2161.80166032,0.00011936,2]
[408055377,1773079840425,-151.0,0.00012,2]
[408055379,1773079840434,-1000.0,0.00012016,2]
[408055381,1773079840443,-1000.0,0.00012016,2]
[408055383,1773079840451,-1000.0,0.00012016,2]
[408055384,1773079840460,-500.0,0.00012055,2]
[408055386,1773079840470,-435.2716291,0.00012112,2]
[408055388,1773079840478,-2500.0,0.00012164,2]
[408055390,1773079840487,-151.0,0.000122,2]
[408055392,1773079840496,-151.0,0.000122,2]
[408055394,1773079840505,-151.0,0.000122,2]
[408055396,1773079840514,-151.0,0.000123,2]
[408055398,1773079840523,-2069.611943,0.00012329,2]
[408055400,1773079840532,-500.0,0.00012329,2]
[408055402,1773079840541,-2773.56790519,0.00012335,2]
[408055404,1773079840550,-11725.4655946,0.000125,2]
[408055406,1773079840559,-151.0,0.000126,2]
[408055408,1773079840568,-151.0,0.000126,2]
[408055410,1773079840577,-151.0,0.000126,2]
[408055412,1773079840587,-151.0,0.000126,2]
[408055414,1773079840595,-500.0,0.00012603,2]
[408055416,1773079840604,-4986.47127123,0.00012619,2]
[408055418,1773079840613,-327.12417013,0.00012694,23]
[408055420,1773079840622,-3000.0,0.00012712,2]
[408055422,1773079840632,-3496.0,0.00012743,2]
[408055424,1773079840641,-14459.54797577,0.00012752,2]
[408055425,1773079840649,-3496.0,0.00012763,2]
[408055427,1773079840659,-3496.0,0.00012769,2]
[408055429,1773079840668,-506.02109216,0.00012814,2]
[408055431,1773079840677,-500.0,0.00012877,2]
[408055433,1773079840687,-2876.18991768,0.00012883,2]
[408055435,1773079840696,-716.0,0.00012893,2]
[408055437,1773079840706,-716.0,0.00012893,2]
[408055439,1773079840715,-716.0,0.00012893,2]
[408055441,1773079840724,-716.0,0.00012893,2]
[408055442,1773079840733,-716.0,0.00012893,2]
[408055444,1773079840742,-765.0,0.00012893,2]
[408055445,1773079840751,-2078.6,0.000129,2]
[408055447,1773079840760,-151.0,0.00013,2]
[408055448,1773079840769,-151.0,0.00013,2]
[408055450,1773079840778,-151.0,0.00013,2]
[408055451,1773079840787,-151.0,0.00013,2]
[408055453,1773079840797,-3496.0,0.00013019,2]
[408055454,1773079840806,-3496.0,0.00013063,2]
[408055456,1773079840816,-3496.0,0.00013088,2]
[408055458,1773079840825,-3496.0,0.00013111,2]
[408055459,1773079840834,-3496.0,0.00013116,2]
[408055460,1773079840843,-3496.0,0.00013122,2]
[408055462,1773079840853,-500.0,0.00013151,2]
[408055464,1773079840862,-1000.0,0.00013218,2]
[408055465,1773079840871,-1000.0,0.00013218,2]
[408055466,1773079840879,-591.0,0.00013218,2]
[408055468,1773079840888,-3496.0,0.00013236,2]
[408055469,1773079840897,-3500.0,0.0001326,2]
[408055471,1773079840906,-151.0,0.000133,2]
[408055472,1773079840915,-3496.0,0.00013317,2]
[408055474,1773079840924,-3496.0,0.00013324,2]
[408055475,1773079840934,-3496.0,0.00013354,2]
[408055477,1773079840943,-1013.20588856,0.00013356,2]
[408055478,1773079840951,-3496.0,0.00013373,2]
[408055480,1773079840961,-3496.0,0.00013379,2]
[408055482,1773079840970,-151.0,0.000134,2]
[408055483,1773079840979,-151.0,0.000134,2]
[408055485,1773079840989,-151.0,0.000134,2]
[408055486,1773079840998,-3496.0,0.00013418,2]
[408055488,1773079841007,-500.0,0.00013425,2]
[408055490,1773079841016,-3496.0,0.00013428,2]
[408055491,1773079841025,-2982.60894464,0.00013431,2]
[408055492,1773079841033,-5975.44702819,0.00013466,2]
[408055494,1773079841043,-3496.0,0.00013477,2]
[408055495,1773079841052,-3496.0,0.00013499,2]
[408055497,1773079841060,-3496.0,0.00013508,2]
[408055498,1773079841069,-3496.0,0.00013535,2]
[408055500,1773079841078,-3496.0,0.00013538,2]
[408055501,1773079841088,-151.0,0.000136,2]
[408055503,1773079841097,-3496.0,0.00013631,2]
[408055505,1773079841106,-500.0,0.00013698,2]
[408055506,1773079841115,-500.0,0.00013698,2]
[408055508,1773079841124,-500.0,0.00013698,2]
[408055509,1773079841132,-500.0,0.00013698,2]
[408055511,1773079841141,-500.0,0.00013698,2]
[408055512,1773079841150,-500.0,0.00013698,2]
[408055514,1773079841163,-500.0,0.00013698,2]
[408055516,1773079841171,-500.0,0.00013698,2]
[408055517,1773079841180,-500.0,0.00013698,2]
[408055519,1773079841190,-500.0,0.00013698,2]
[408055520,1773079841200,-500.0,0.00013698,2]
[408055522,1773079841209,-500.0,0.00013698,2]
[408055524,1773079841218,-184.30276382,0.00013698,2]
[408055525,1773079841227,-557.72504967,0.00013698,2]
[408055527,1773079841236,-1340.41,0.00013698,2]
[408055528,1773079841245,-1340.41,0.00013698,2]
[408055530,1773079841254,-1340.41,0.00013698,2]
[408055531,1773079841263,-1340.41,0.00013698,2]
[408055533,1773079841271,-1340.41,0.00013698,2]
[408055535,1773079841280,-572.52742283,0.00013698,2]
[408055536,1773079841289,-1340.41,0.00013698,2]
[408055538,1773079841298,-1340.41,0.00013698,2]
[408055539,1773079841307,-1340.41,0.00013698,2]
[408055541,1773079841316,-1340.41,0.00013698,2]
[408055543,1773079841325,-1340.41,0.00013698,2]
[408055544,1773079841334,-1340.41,0.00013698,2]
[408055546,1773079841344,-1340.41,0.00013698,2]
[408055547,1773079841353,-1340.41,0.00013698,2]
[408055549,1773079841362,-1340.41,0.00013698,2]
[408055559,1773079841494,-1340.41,0.00013698,2]
[408055561,1773079841519,-1340.41,0.00013698,2]
[408055563,1773079841529,-1340.41,0.00013698,2]
[408055565,1773079841538,-1340.41,0.00013698,2]
[408055566,1773079841547,-1340.41,0.00013698,2]
[408055568,1773079841557,-1340.41,0.00013698,2]
[408055570,1773079841566,-1340.41,0.00013698,2]
[408055571,1773079841576,-1340.41,0.00013698,2]
[408055573,1773079841585,-1340.41,0.00013698,2]
[408055575,1773079841594,-1340.49574356,0.00013698,2]
[408055576,1773079841603,-500.0,0.00013698,2]
[408055578,1773079841612,-500.0,0.00013698,2]
[408055579,1773079841621,-500.0,0.00013698,2]
[408055581,1773079841630,-500.0,0.00013698,2]
[408055583,1773079841640,-500.0,0.00013698,2]